bitfinex-derivatives/quotes_SOLF0:USTF0_20250228
["timestamp","ask_amount","ask_price","bid_price","bid_amount"]
[1740764588676,0.04563981,144.14,144.07,16.22]
[1740764588885,0.04867034,144.14,144.11,0.05024675]
[1740764589181,148.23256497,144.25,144.11,0.05024675]
[1740764589485,119.68886535,144.25,144.09,1.8511]
[1740764590083,118.49640745,144.25,144.09,1.8511]
[1740764590283,0.05261083,144.18,144.16,0.05012524]
[1740764590580,118.49640745,144.25,144.17,16.18]
[1740764590787,16.16,144.26,144.08,238.12]
[1740764590986,16.16,144.26,144.09,1.8511]
[1740764591587,0.05171531,144.19,144.16,0.04969064]
[1740764591786,16.16,144.26,144.09,1.8511]
[1740764592087,0.04489378,144.19,144.16,0.0457603]
[1740764592288,16.18,144.18,144.01,16.18]
[1740764592590,6.9392,144.12,144.01,6.9445]
[1740764592790,16.18,144.18,143.99,1.759]
[1740764593385,0.05297382,144.1,144.07,0.04944065]
[1740764593586,6.9397,144.11,144.0,6.9449]
[1740764593786,0.04748555,144.1,144.07,0.04580842]
[1740764593988,6.9397,144.11,144.0,6.9449]
[1740764594189,0.04597134,144.1,144.07,0.04770915]
[1740764594389,190.0,144.17,144.03,16.16]
[1740764594589,0.05060047,144.1,144.07,0.04538655]
[1740764594787,16.16,144.17,144.05,6.9425]
[1740764594990,16.16,144.17,144.05,6.99465026]
[1740764595183,0.04833298,144.12,144.06,1.8678]
[1740764595381,0.04833298,144.12,144.1,0.05150198]
[1740764598686,6.9396,144.11,144.1,0.05150198]
[1740764599083,10.3996,144.11,144.1,0.05150198]
[1740764600192,6.9396,144.11,144.1,0.05150198]
[1740764600392,6.98763298,144.12,144.1,0.05150198]
[1740764600594,0.04833298,144.12,144.1,0.05150198]
[1740764601394,0.04833298,144.12,144.1,6.99150198]
[1740764601794,0.04833298,144.12,144.1,0.05150198]
[1740764603594,28.54369962,144.21,144.1,0.05150198]
[1740764603991,28.54369962,144.21,144.08,225.6472]
[1740764604788,0.04573996,144.16,144.13,0.04724425]
[1740764605096,6.98333996,144.16,144.13,0.04724425]
[1740764605594,6.9382,144.15,144.13,0.04724425]
[1740764606694,0.04573996,144.16,144.13,0.04724425]
[1740764606995,6.98333996,144.16,144.13,0.04724425]
[1740764607394,0.04573996,144.16,144.13,0.04724425]
[1740764607896,6.938,144.15,144.13,0.04724425]
[1740764608095,0.04573996,144.16,144.13,0.04724425]
[1740764608394,6.9382,144.14,144.13,0.04724425]
[1740764609498,6.9382,144.14,144.13,4.425e-05]
[1740764609799,26.1382,144.14,144.13,4.425e-05]
[1740764611097,22.6782,144.14,144.13,4.425e-05]
[1740764611396,26.1382,144.14,144.13,4.425e-05]
[1740764612197,19.2,144.14,143.96,15.72]
[1740764612398,15.74,144.14,144.02,1.9007]
[1740764613493,0.04675806,144.09,144.07,0.05076508]
[1740764613792,15.76675806,144.09,144.07,0.05076508]
[1740764613992,6.9411,144.08,144.07,0.05076508]
[1740764617102,6.9403,144.1,144.07,0.05076508]
[1740764617297,44.18369962,144.16,144.04,1.9122]
[1740764617596,28.54369962,144.16,144.04,1.9122]
[1740764617806,28.54369962,144.16,144.05,7.24522017]
[1740764617999,28.54369962,144.16,144.06,15.62]
[1740764618401,0.05040232,144.12,144.1,0.05067697]
[1740764618705,6.9396,144.11,144.1,0.05067697]
[1740764619300,6.9396,144.11,144.1,7.697e-05]
[1740764620100,10.3996,144.11,144.1,7.697e-05]
[1740764620402,6.9396,144.11,144.1,7.697e-05]
[1740764626610,10.3996,144.11,144.1,7.697e-05]
[1740764626801,190.0,144.1,143.9,1.38985406]
[1740764627103,31.3682,144.09,143.9,1.38985406]
[1740764627296,31.3682,144.09,143.91,21.0427]
[1740764627497,17.4869,144.09,143.91,5.3427]
[1740764627697,13.8823,144.08,143.91,21.0427]
[1740764628103,0.04383171,144.01,143.98,0.04385016]
[1740764628297,15.7,144.04,143.91,12.5939589]
[1740764628502,0.04489816,144.01,143.98,0.04515864]
[1740764628703,6.9454,143.99,143.98,0.04515864]
[1740764629004,6.9454,143.99,143.98,5.864e-05]
[1740764629205,22.6254,143.99,143.98,5.864e-05]
[1740764629405,26.1054,143.99,143.98,5.864e-05]
[1740764629714,6.9498,143.9,143.89,28.55712406]
[1740764630897,0.05282136,143.91,143.89,28.55712406]
[1740764631403,6.9498,143.9,143.88,0.04565071]
[1740764631705,0.05282136,143.91,143.88,0.04565071]
[1740764632207,7.00252136,143.91,143.88,0.04565071]
[1740764633102,6.9503,143.89,143.88,0.04565071]
[1740764634407,0.05282136,143.91,143.88,0.04565071]
[1740764635609,6.9498,143.9,143.88,0.04565071]
[1740764635909,6.9512,143.88,143.79,6.955]
[1740764636110,6.9512,143.88,143.83,3.7532]
[1740764636299,15.64,143.92,143.83,3.7532]
[1740764636908,0.04815325,143.89,143.83,3.7532]
[1740764637403,6.99875325,143.89,143.83,3.7532]
[1740764637606,15.84,143.94,143.83,19.5732]
[1740764637805,6.9487,143.93,143.85,0.05100537]
[1740764638101,15.84,143.98,143.84,7.25529032]
[1740764638508,250.64369962,144.01,143.85,22.18033715]
[1740764638509,16.92229962,144.01,143.85,22.18033715]
[1740764638707,5.46009962,144.01,144.0,6.945]
[1740764639005,5.46009962,144.01,144.0,26.685]
[1740764639006,2.65759962,144.01,144.0,26.685]
[1740764639309,75.2674024,144.02,144.0,26.685]
[1740764639510,75.2674024,144.02,144.0,19.74]
[1740764640399,37.23866525,144.02,144.0,211.74]
[1740764640604,2.11586525,144.02,144.0,211.74]
[1740764640807,6.525e-05,144.02,144.0,211.74]
[1740764641512,6.525e-05,144.02,144.01,6.9445]
[1740764641911,6.525e-05,144.02,144.01,10.4245]
[1740764642311,6.525e-05,144.02,144.01,202.4245]
[1740764642500,3.7,144.19,144.01,195.48]
[1740764642707,5.5144,144.19,144.02,2.6637631]
[1740764642906,5.5144,144.19,144.03,2.66366668]
[1740764643103,12.4505,144.19,144.09,6.9405]
[1740764643314,3.6519,144.19,144.09,16.14]
[1740764643613,0.04726862,144.15,144.13,0.04861298]
[1740764644810,0.04726862,144.15,144.14,6.9382]
[1740764645606,0.04726862,144.15,144.14,10.3982]
[1740764645807,0.04726862,144.15,144.14,6.9382]
[1740764646107,0.04726862,144.15,144.13,6.98721298]
[1740764646810,0.04726862,144.15,144.13,0.04861298]
[1740764647012,0.04726862,144.15,144.14,6.9382]
[1740764647213,0.04726862,144.15,144.13,0.04861298]
[1740764650816,0.04726862,144.15,144.06,222.16]
[1740764651007,1.8591,144.15,144.06,222.16]
[1740764651213,17.7791,144.15,143.99,7.24170222]
[1740764651520,1.9251,144.14,144.01,6.9444]
[1740764651719,1.9251,144.14,144.0,15.92]
[1740764652217,6.98524431,144.1,144.07,0.04430817]
[1740764652414,0.04474431,144.1,144.07,0.04430817]
[1740764652618,6.9411,144.08,144.07,0.04430817]
[1740764653016,0.04474431,144.1,144.03,1.38859959]
[1740764653212,6.9429,144.05,143.99,22.8253]
[1740764653615,1.9251,144.14,143.99,15.88]
[1740764653814,6.9416,144.07,143.99,15.88]
[1740764654114,0.04554143,144.04,143.99,15.88]
[1740764654714,0.04554143,144.04,144.01,6.9442]
[1740764655315,0.04554143,144.04,144.0,6.9448]
[1740764655820,6.98864143,144.04,143.99,23.06836408]
[1740764656020,0.04554143,144.04,143.99,23.06836408]
[1740764656420,0.04554143,144.04,143.98,222.02]
[1740764657011,6.944,144.03,143.98,222.02]
[1740764657217,0.04554143,144.04,143.98,222.02]
[1740764657525,0.04554143,144.04,143.95,15.78]
[1740764657721,0.04554143,144.04,143.94,15.74]
[1740764657920,15.78,144.1,143.94,15.74]
[1740764658115,6.995969,144.01,143.94,15.74]
[1740764658323,0.051169,144.01,143.94,15.74]
[1740764658523,6.9455,143.99,143.94,15.74]
[1740764658717,1.7748,144.09,143.91,222.04]
[1740764658921,0.05069518,143.98,143.93,15.72]
[1740764659121,1.7748,144.09,143.94,6.9475]
[1740764659321,0.04578948,143.97,143.94,6.9475]
[1740764659534,1.7748,144.09,143.91,222.04]
[1740764659723,0.05338631,143.97,143.91,228.9893]
[1740764659922,3.6143,144.04,143.91,222.04]
[1740764660121,0.04462871,143.95,143.91,222.04]
[1740764660326,3.6143,144.04,143.91,222.04]
[1740764660824,6.9464,143.97,143.91,222.04]
[1740764661021,3.6143,144.04,143.81,13.9078]
[1740764661223,0.0458913,143.95,143.82,18.34704251]
[1740764661421,1.7411,143.99,143.83,2.75674582]
[1740764661626,0.04745144,143.9,143.84,1.27641534]
[1740764661921,6.9492,143.92,143.85,6.9521]
[1740764662124,0.05211368,143.88,143.85,6.9521]
[1740764662323,1.7411,143.99,143.85,6.9521]
[1740764662524,6.9492,143.92,143.85,6.9521]
[1740764662726,0.05226877,143.88,143.85,6.9521]
[1740764662926,1.7411,143.99,143.83,8.34353048]
[1740764663125,0.04721326,143.88,143.83,1.39053048]
[1740764663323,17.4011,143.99,143.83,1.39053048]
[1740764663518,6.9462,143.98,143.83,1.39053048]
[1740764663725,5.62e-06,143.87,143.84,1.27661567]
[1740764663924,1.7411,143.99,143.85,2.66688641]
[1740764664225,1.7411,143.99,143.86,15.68]
[1740764664631,6.9475,143.95,143.86,15.68]
[1740764664926,0.05123185,143.94,143.91,0.0527854]
[1740764666032,0.05123185,143.94,143.92,15.66]
[1740764666432,0.05123185,143.94,143.85,1.39033715]
[1740764666632,1.8026,143.95,143.85,1.39033715]
[1740764667029,6.948,143.94,143.85,8.34243715]
[1740764667229,6.948,143.94,143.85,230.54243715]
[1740764667533,0.05176145,143.91,143.85,223.59033715]
[1740764667928,0.05176145,143.91,143.86,1.27651388]
[1740764668728,0.05176145,143.91,143.86,4.75651388]
[1740764669032,0.05176145,143.91,143.87,2.66665775]
[1740764669232,0.05176145,143.91,143.88,1.27651388]
[1740764669433,15.72,144.05,143.89,15.72]
[1740764669633,6.9451,144.0,143.9,1.27651388]
[1740764669835,1.9144,144.03,143.9,1.27651388]
[1740764670030,1.9144,144.03,143.87,1.39014387]
[1740764670735,6.9486,143.93,143.87,1.39014387]
[1740764671039,15.84,143.99,143.89,0.04864796]
[1740764671230,0.04429028,143.91,143.83,15.84]
[1740764671432,1.7959,143.94,143.83,15.84]
[1740764671634,0.0487631,143.88,143.83,15.84]
[1740764671936,0.0487631,143.88,143.83,23.09541637]
[1740764672140,0.0487631,143.88,143.79,192.1465]
[1740764672141,0.0487631,143.88,143.74,222.2]
[1740764672437,1.7959,143.94,143.78,15.92]
[1740764672631,0.04681697,143.82,143.79,1.27699656]
[1740764672832,6.9515,143.87,143.79,1.27699656]
[1740764673132,0.04683121,143.82,143.79,7.25705547]
[1740764674240,0.04683121,143.82,143.79,10.73705547]
[1740764675236,0.04683121,143.82,143.81,6.9541]
[1740764675737,1.9021,143.93,143.85,6.952]
[1740764675932,8.8506,143.93,143.86,15.88]
[1740764677036,6.99961439,143.91,143.88,0.05102524]
[1740764678439,0.05011439,143.91,143.88,0.05102524]
[1740764679128,6.99941439,143.91,143.88,0.05102524]
[1740764679334,0.05011439,143.91,143.88,0.05102524]
[1740764681132,0.05011439,143.91,143.81,1.39072387]
[1740764681335,1.9021,143.93,143.81,1.39072387]
[1740764681531,1.9021,143.93,143.82,15.88]
[1740764681737,1.9021,143.93,143.82,17.27062717]
[1740764682343,0.04597796,143.89,143.87,6.9509]
[1740764682540,0.04597796,143.89,143.87,22.8509]
[1740764682738,0.04597796,143.89,143.88,6.9507]
[1740764682938,1.8012,143.95,143.82,1.39062717]
[1740764683538,1.8196,143.94,143.82,1.39062717]
[1740764683944,0.05206864,143.89,143.87,0.04710002]
[1740764684139,1.8196,143.94,143.87,0.04710002]
[1740764684339,0.04721345,143.89,143.87,0.04710002]
[1740764684544,8.7675,143.94,143.87,6.99800002]
[1740764684943,0.04410281,143.92,143.87,6.99800002]
[1740764685146,0.04410281,143.92,143.87,0.04710002]
[1740764686349,6.9493,143.91,143.87,0.04710002]
[1740764686550,0.04410281,143.92,143.87,0.04710002]
[1740764687250,6.9496,143.91,143.87,0.04710002]
[1740764687450,8.8031,143.91,143.87,0.04710002]
[1740764688046,0.04410281,143.92,143.89,6.95]
[1740764688248,3.6126,144.04,143.89,1.38995065]
[1740764688444,1.7616,144.03,143.89,1.38995065]
[1740764689246,0.04674,143.97,143.95,0.05215739]
[1740764689449,1.7616,144.03,143.95,0.05215739]
[1740764689746,6.9443,144.02,143.95,0.05215739]
[1740764689946,0.04649692,144.0,143.95,0.05215739]
[1740764691555,6.99189692,144.0,143.95,0.05215739]
[1740764692246,6.99189692,144.0,143.89,1.38995065]
[1740764692247,0.04649692,144.0,143.89,1.38995065]
[1740764692452,1.7616,144.03,143.89,1.38995065]
[1740764692749,6.9463,143.98,143.89,1.38995065]
[1740764692948,1.7518,143.97,143.89,1.38995065]
[1740764693147,1.7518,143.97,143.91,6.949]
[1740764693452,0.04890718,143.94,143.92,0.04459615]
[1740764694451,0.04890718,143.94,143.92,6.99339615]
[1740764694650,0.04890718,143.94,143.92,0.04459615]
[1740764696449,0.04890718,143.94,143.93,6.9483]
[1740764697349,0.04890718,143.94,143.82,193.375]
[1740764697350,0.04890718,143.94,143.77,305.09766432]
[1740764697649,1.7954,143.94,143.8,230.06826762]
[1740764697846,1.7954,143.94,143.81,1.3726]
[1740764698048,1.7954,143.94,143.85,6.952]
[1740764698248,1.7954,143.94,143.86,16.08]
[1740764698447,8.7435,143.94,143.86,16.08]
[1740764698650,0.04395111,143.91,143.86,16.08]
[1740764699049,0.04395111,143.91,143.82,414.28]
[1740764699247,8.7435,143.94,143.83,22.993]
[1740764699453,0.04825502,143.88,143.84,20.79]
[1740764699647,74.44680223,144.08,143.84,216.27]
[1740764699850,3.5445,144.05,143.9,6.9494]
[1740764700149,31.55718951,144.05,143.91,16.04]
[1740764700355,31.55718951,144.05,143.91,16.02]
[1740764700746,28.01268951,144.05,143.92,244.4426]
[1740764700951,0.04432936,143.99,143.98,6.9454]
[1740764701148,28.01268951,144.05,143.98,16.06]
[1740764701556,28.01268951,144.05,143.93,1.38956437]
[1740764701748,3.6058,144.04,143.94,16.08]
[1740764702146,3.6058,144.04,143.93,1.38956437]
[1740764702455,0.04992258,144.0,143.98,0.04849075]
[1740764702755,28.01268951,144.05,143.99,16.12]
[1740764703156,1.9227,144.06,143.99,16.12]
[1740764703453,1.806,144.1,143.99,16.12]
[1740764703654,1.806,144.1,144.0,1.3722]
[1740764703852,0.05180533,144.06,144.03,0.05165454]
[1740764704250,1.806,144.15,144.03,3.53165454]
[1740764704454,1.806,144.15,144.02,222.26]
[1740764704658,1.806,144.15,144.03,1.38859959]
[1740764705456,0.05278715,144.1,144.08,0.04606206]
[1740764705657,29.79818951,144.2,144.09,16.1]
[1740764706161,1.7855,144.2,144.09,16.1]
[1740764706962,0.04916034,144.16,144.13,0.04785911]
[1740764711059,6.9379,144.15,144.13,0.04785911]
[1740764711256,0.04916034,144.16,144.08,15.92]
[1740764711453,6.9405,144.1,144.08,15.92]
[1740764711653,15.96,144.11,143.95,75.47150186]
[1740764711856,1.8845,144.09,143.95,75.47150186]
[1740764712055,1.8845,144.09,143.96,54.02826762]
[1740764712465,0.04461507,144.04,144.01,0.04659488]
[1740764712962,6.9435,144.03,144.01,0.04659488]
[1740764713163,0.04461507,144.04,144.01,0.04659488]
[1740764713354,0.04461507,144.04,143.96,54.02826762]
[1740764713554,6.9435,144.03,143.95,15.92]
[1740764713757,1.8845,144.09,143.95,15.92]
[1740764714163,8.8253,144.09,143.98,6.9459]
[1740764714357,1.8845,144.09,143.98,6.9459]
[1740764714562,0.05320539,144.05,144.02,0.04726707]
[1740764719475,0.05320539,144.05,143.93,3.5107]
[1740764719476,0.05320539,144.05,143.87,222.08]
[1740764719674,17.7089,144.07,143.89,15.84]
[1740764720076,17.7089,144.07,143.9,6.9495]
[1740764720284,17.7089,144.07,143.89,15.82]
[1740764720482,6.9443,144.02,143.93,6.9483]
[1740764720781,0.04775173,143.99,143.97,0.04621354]
[1740764721081,6.9432,144.04,143.95,6.9469]
[1740764721281,0.04496794,143.99,143.97,0.05132761]
[1740764721481,17.7089,144.07,143.87,222.08]
[1740764721677,15.84,144.06,143.88,15.84]
[1740764722077,15.84,144.06,143.89,2.98177195]
[1740764722379,6.9432,144.04,143.89,3.1747]
[1740764722578,0.04878496,143.99,143.96,0.05134252]
[1740764722780,6.9435,144.03,143.94,6.9478]
[1740764723080,0.05236137,143.99,143.96,0.04674981]
[1740764724279,15.82,143.98,143.79,24.74783213]
[1740764724583,6.9484,143.93,143.82,8.8421]
[1740764724777,3.6772,143.97,143.82,17.8088]
[1740764725178,3.6772,143.97,143.83,222.14]
[1740764725381,0.04399313,143.91,143.83,223.41660644]
[1740764725581,0.04399313,143.91,143.83,222.14]
[1740764725783,0.04399313,143.91,143.84,1.2765745]
[1740764725977,0.04399313,143.91,143.84,7.25491218]
[1740764727385,0.04399313,143.91,143.83,223.53053048]
[1740764727987,6.9501,143.9,143.83,223.53053048]
[1740764728386,0.05238405,143.88,143.83,223.53053048]
[1740764728886,0.05238405,143.88,143.83,1.39053048]
[1740764729984,0.05238405,143.88,143.85,6.9519]
[1740764730185,0.05238405,143.88,143.84,7.25667715]
[1740764730382,0.05238405,143.88,143.86,6.9513]
[1740764730588,0.05238405,143.88,143.86,22.7713]
[1740764730789,0.05238405,143.88,143.86,15.82]
[1740764730988,1.7616,143.96,143.87,6.9509]
[1740764731181,1.7616,143.96,143.86,15.82]
[1740764731385,6.9482,143.94,143.86,15.82]
[1740764731689,1.7616,143.96,143.86,15.82]
[1740764732086,0.051761,143.92,143.9,0.04598006]
[1740764732792,0.051761,143.92,143.91,15.76]
[1740764733188,0.051761,143.92,143.91,22.7093]
[1740764733389,0.051761,143.92,143.91,15.76]
[1740764733791,1.7759,144.05,143.91,19.24]
[1740764733991,3.7224,144.04,143.91,17.5688]
[1740764734292,6.9438,144.03,143.95,6.9473]
[1740764734491,3.7224,144.04,143.91,17.5688]
[1740764734691,3.7224,144.04,143.91,18.95855748]
[1740764734886,6.9443,144.02,143.94,6.9477]
[1740764735100,0.04869726,143.99,143.96,0.04729394]
[1740764735291,6.946,143.98,143.96,0.04729394]
[1740764735493,0.04869726,143.99,143.96,0.04729394]
[1740764735893,6.99449726,143.99,143.96,0.04729394]
[1740764736089,0.04869726,143.99,143.96,0.04729394]
[1740764736595,0.04869726,143.99,143.96,15.72729394]
[1740764736792,222.26,144.13,143.96,15.72729394]
[1740764736793,205.68,144.12,143.96,237.96729394]
[1740764737097,5.403,144.11,143.96,237.92]
[1740764737394,6.9417,144.07,143.96,237.92]
[1740764737993,5.403,144.11,144.02,6.944]
[1740764737994,0.04983708,144.03,144.02,6.944]
[1740764738187,5.403,144.11,144.02,15.66]
[1740764738594,6.9406,144.09,144.02,22.6036]
[1740764738895,5.403,144.11,144.02,15.66]
[1740764739387,0.05158505,144.08,144.05,0.05292099]
[1740764739585,6.9419,144.07,144.05,0.05292099]
[1740764739990,0.05158505,144.08,144.05,0.05292099]
[1740764740796,6.9416,144.07,144.05,0.05292099]
[1740764741186,0.05158505,144.08,144.05,0.05292099]
[1740764741887,0.05158505,144.08,143.96,223.62927479]
[1740764742088,21.003,144.11,143.97,15.6]
[1740764743001,0.05064864,144.05,144.03,0.04636861]
[1740764743201,21.003,144.11,144.03,0.04636861]
[1740764743401,0.05218101,144.05,144.03,0.04636861]
[1740764743598,21.003,144.11,144.03,0.04636861]
[1740764743999,6.942,144.07,144.03,0.04636861]
[1740764744602,6.98734537,144.08,144.03,6.98956861]
[1740764745098,0.04594537,144.08,143.96,1.38927479]
[1740764745397,21.003,144.11,143.91,1.8088]
[1740764745601,6.9467,143.97,143.91,8.7578]
[1740764745799,15.58,144.03,143.89,222.14]
[1740764746097,15.58,144.03,143.95,0.0445612]
[1740764746098,6.9472,143.96,143.95,0.0445612]
[1740764746895,0.05038548,143.97,143.95,0.0445612]
[1740764747295,0.05038548,143.97,143.96,6.9469]
[1740764747504,1.8228,144.06,143.95,0.0445612]
[1740764747701,1.8228,144.06,143.94,15.56]
[1740764747897,6.9437,144.03,143.94,15.56]
[1740764748103,1.8228,144.06,143.95,7.24949656]
[1740764748500,6.9447,144.01,143.99,0.05241343]
[1740764749402,6.99022869,144.02,143.99,0.05241343]
[1740764749604,0.04602869,144.02,143.99,0.05241343]
[1740764750602,6.945,144.0,143.99,0.05241343]
[1740764751006,0.04602869,144.02,143.94,15.52]
[1740764751207,6.946,143.98,143.94,15.52]
[1740764751407,17.3428,144.06,143.94,15.52]
[1740764751610,6.9455,143.99,143.94,15.52]
[1740764752305,0.04962964,143.98,143.95,0.04676351]
[1740764753504,0.04962964,143.98,143.96,6.9468]
[1740764753910,0.04962964,143.98,143.95,0.04676351]
[1740764754109,0.04962964,143.98,143.96,6.9465]
[1740764754311,0.04962964,143.98,143.95,0.04676351]
[1740764754814,0.04962964,143.98,143.96,6.9466]
[1740764755511,0.04962964,143.98,143.95,0.04676351]
[1740764755512,0.04962964,143.98,143.97,6.9464]
[1740764756012,1.8228,144.06,143.95,1.81706351]
[1740764756214,8.7651,144.06,143.95,3.2967]
[1740764756414,1.8228,144.06,143.95,3.2967]
[1740764757009,0.05082596,144.02,143.99,0.05002932]
[1740764759015,0.05082596,144.02,143.99,6.99512932]
[1740764759207,0.05082596,144.02,143.99,0.05002932]
[1740764759714,6.99482596,144.02,143.99,0.05002932]
[1740764760215,0.05082596,144.02,143.99,0.05002932]
[1740764761016,6.9449,144.01,143.99,0.05002932]
[1740764761714,6.945,144.0,143.99,0.05002932]
[1740764762511,0.05082596,144.02,143.99,0.05002932]
[1740764763715,6.945,144.0,143.99,0.05002932]
[1740764764116,6.9447,144.01,143.99,0.05002932]
[1740764764416,0.05082596,144.02,143.99,15.27002932]
[1740764764719,1.8368,144.09,143.99,237.43002932]
[1740764764914,1.8368,144.09,144.0,1.5265]
[1740764765217,1.8368,144.09,144.03,6.943]
[1740764765819,0.04544905,144.07,144.05,0.04810044]
[1740764766421,0.04544905,144.07,144.06,6.9421]
[1740764766821,0.04544905,144.07,144.05,0.04810044]
[1740764768122,0.04544905,144.07,144.06,6.9421]
[1740764768819,1.8131,144.13,144.11,6.9396]
[1740764769024,28.01268951,144.16,144.11,6.9396]
[1740764769217,1.9028,144.17,144.11,6.9396]
[1740764769621,1.9028,144.17,144.12,6.9391]
[1740764770026,0.0486371,144.16,144.13,0.05316138]
[1740764775234,0.0486371,144.16,144.13,6.99156138]
[1740764775434,0.0486371,144.16,144.13,0.05316138]
[1740764775840,3.5086371,144.16,144.06,7.24245578]
[1740764776036,1.7436,144.15,143.99,16.8594]
[1740764776334,1.7436,144.15,144.0,1.5265]
[1740764776535,1.7436,144.15,144.01,7.24672891]
[1740764776831,6.9427,144.05,144.01,7.24672891]
[1740764777135,15.04,144.1,144.02,0.05051911]
[1740764777330,0.04611041,144.04,144.01,7.24672891]
[1740764777535,1.8733,144.09,144.01,7.24672891]
[1740764777927,0.04486967,144.06,144.04,0.04473839]
[1740764779240,0.04486967,144.06,144.04,6.98773839]
[1740764779434,0.04486967,144.06,144.04,0.04473839]
[1740764782742,3.52486967,144.06,143.87,216.93222858]
[1740764783034,5.5899,144.05,143.89,38.06826762]
[1740764783444,6.9459,143.98,143.89,38.06826762]
[1740764783837,15.14,144.02,143.92,0.04537213]
[1740764784035,0.04568359,143.95,143.93,22.0879]
[1740764784238,0.04632306,143.97,143.95,0.05264319]
[1740764785445,6.99272306,143.97,143.95,0.05264319]
[1740764785634,0.04632306,143.97,143.95,0.05264319]
[1740764785837,0.04632306,143.97,143.9,222.04]
[1740764786034,0.04632306,143.97,143.89,38.06826762]
[1740764786342,6.9487,143.93,143.89,38.06826762]
[1740764786539,6.9487,143.93,143.89,9.51114356]
[1740764786738,18.9148,143.96,143.83,237.24]
[1740764786941,6.9474,143.95,143.89,6.95]
[1740764787140,0.05272276,143.91,143.83,237.24]
[1740764787436,0.05272276,143.91,143.87,6.9512]
[1740764787836,0.05272276,143.91,143.86,0.05031378]
[1740764788037,0.05272276,143.91,143.88,6.9507]
[1740764788242,0.05272276,143.91,143.86,0.05031378]
[1740764789743,0.05272276,143.91,143.87,7.25352602]
[1740764790044,15.1,144.02,143.88,16.37625733]
[1740764790343,1.9108,144.01,143.88,16.623]
[1740764790540,6.9456,143.99,143.93,6.948]
[1740764790742,6.9456,143.99,143.93,22.028]
[1740764791141,0.04702942,143.97,143.95,0.05340133]
[1740764792038,0.04702942,143.97,143.7,277.287934]
[1740764792242,6.9484,143.93,143.87,22.29352602]
[1740764792437,1.9162,144.0,143.87,22.29352602]
[1740764792742,6.9491,143.92,143.87,15.04]
[1740764793140,0.0529745,143.91,143.88,0.04825094]
[1740764794447,7.0022745,143.91,143.88,0.04825094]
[1740764794648,0.0529745,143.91,143.88,0.04825094]
[1740764795147,0.0529745,143.91,143.89,6.9499]
[1740764795548,1.9162,144.0,143.88,0.04825094]
[1740764795950,6.9456,143.99,143.87,22.25289612]
[1740764796251,1.9162,144.0,143.88,1.27626535]
[1740764796443,1.9162,144.0,143.87,22.25289612]
[1740764796742,0.05292879,143.95,143.92,0.05248727]
[1740764796948,0.05292879,143.95,143.92,15.03248727]
[1740764798647,0.05292879,143.95,143.92,0.05248727]
[1740764798850,7.00042879,143.95,143.92,0.05248727]
[1740764799447,0.05292879,143.95,143.92,0.05248727]
[1740764800054,0.05292879,143.95,143.93,6.9479]
[1740764800254,0.05292879,143.95,143.92,0.05248727]
[1740764800456,0.05292879,143.95,143.93,14.94]
[1740764800756,3.7038,144.05,143.99,6.9454]
[1740764801156,3.7038,144.05,143.98,14.94]
[1740764801852,0.04554545,144.03,144.0,0.05119041]
[1740764802456,0.04554545,144.03,144.01,6.9445]
[1740764802650,0.04554545,144.03,144.0,0.05119041]
[1740764803254,0.04554545,144.03,143.94,14.96]
[1740764803661,6.945,144.0,143.94,14.96]
[1740764804660,0.05098827,143.98,143.96,0.0480888]
[1740764806160,6.99698827,143.98,143.96,0.0480888]
[1740764806361,0.05098827,143.98,143.96,0.0480888]
[1740764806755,0.05098827,143.98,143.88,1.785]
[1740764806955,14.92,144.0,143.87,21.8711]
[1740764807161,1.7462,143.99,143.87,14.92]
[1740764807861,0.05297173,143.94,143.92,0.05304433]
[1740764808263,1.7462,143.99,143.92,0.05304433]
[1740764808459,0.04803551,143.94,143.86,222.22]
[1740764808664,1.8951,143.98,143.86,222.22]
[1740764809462,1.8951,143.98,143.86,229.1717]
[1740764809662,0.05098207,143.93,143.91,0.04829039]
[1740764809862,1.8951,143.98,143.82,1.8723]
[1740764809863,14.88,143.95,143.83,14.88]